[Event "Late-Titled-Tuesday-Blitz-March-19-2024"]
[Site "Chess.com"]
[Date "2024.03.19"]
[Round "6"]
[White "Bugcrusher"]
[Black "Jamal-Jamal-Jamal"]
[Result "1-0"]
[WhiteElo "2471"]
[BlackElo "2250"]
[TimeControl "180+1"]
[EndTime "15:05:23 PDT"]
[Termination "Bugcrusher won by resignation"]

1. e4 {[%clk 0:03:00.9]} 1... c5 {[%clk 0:02:59.4]} 2. Nc3 {[%clk 0:02:56.7]}
2... Nc6 {[%clk 0:02:58.5]} 3. Bb5 {[%clk 0:02:53.7]} 3... Nd4 {[%clk
0:02:57.5]} 4. Nf3 {[%clk 0:02:53.4]} 4... Nxb5 {[%clk 0:02:56]} 5. Nxb5 {[%clk
0:02:53.4]} 5... a6 {[%clk 0:02:56.7]} 6. Nc3 {[%clk 0:02:53.4]} 6... b5 {[%clk
0:02:56.9]} 7. d4 {[%clk 0:02:49]} 7... cxd4 {[%clk 0:02:47.6]} 8. Qxd4 {[%clk
0:02:46.4]} 8... Bb7 {[%clk 0:02:47.5]} 9. Bg5 {[%clk 0:02:41.7]} 9... Rc8
{[%clk 0:02:35.3]} 10. O-O-O {[%clk 0:02:37.7]} 10... Qc7 {[%clk 0:02:07]} 11.
Rhe1 {[%clk 0:02:18.8]} 11... Nf6 {[%clk 0:01:43.9]} 12. Bxf6 {[%clk 0:02:10.5]}
12... exf6 {[%clk 0:01:43]} 13. e5 {[%clk 0:02:02.9]} 13... f5 {[%clk
0:01:36.6]} 14. Rd2 {[%clk 0:01:46]} 14... Bc5 {[%clk 0:01:34.2]} 15. Nd5 {[%clk
0:01:30]} 15... Bxd5 {[%clk 0:01:06.6]} 16. Qxd5 {[%clk 0:01:29.8]} 16... O-O
{[%clk 0:01:06.8]} 17. Qxd7 {[%clk 0:01:26.1]} 17... Qxd7 {[%clk 0:01:02.1]} 18.
Rxd7 {[%clk 0:01:25.6]} 18... Bxf2 {[%clk 0:01:02.1]} 19. Re2 {[%clk 0:01:22.4]}
19... Bc5 {[%clk 0:00:49.9]} 20. e6 {[%clk 0:01:15.9]} 20... fxe6 {[%clk
0:00:39.9]} 21. Rxe6 {[%clk 0:01:15.6]} 21... Rfe8 {[%clk 0:00:40.1]} 22. Rxe8+
{[%clk 0:01:15.6]} 22... Rxe8 {[%clk 0:00:41]} 23. Kd2 {[%clk 0:01:16]} 23...
Re6 {[%clk 0:00:33.1]} 24. Nd4 {[%clk 0:01:11.8]} 24... Bxd4 {[%clk 0:00:29.8]}
25. Rxd4 {[%clk 0:01:12.4]} 25... Kf7 {[%clk 0:00:29.3]} 26. Rd7+ {[%clk
0:01:12]} 26... Kf6 {[%clk 0:00:29.2]} 27. b3 {[%clk 0:01:03.2]} 27... Rc6
{[%clk 0:00:21.8]} 28. Kd3 {[%clk 0:01:00.8]} 28... g5 {[%clk 0:00:15.6]} 29. c4
{[%clk 0:01:00.4]} 29... bxc4+ {[%clk 0:00:15.5]} 30. bxc4 {[%clk 0:01:01]}
30... h5 {[%clk 0:00:16.3]} 31. Kd4 {[%clk 0:00:58.9]} 31... g4 {[%clk
0:00:15.5]} 32. Kd5 {[%clk 0:00:58.1]} 32... Rc8 {[%clk 0:00:14.1]} 33. g3
{[%clk 0:00:54.9]} 33... h4 {[%clk 0:00:13.4]} 34. c5 {[%clk 0:00:54.2]} 34...
hxg3 {[%clk 0:00:13]} 35. hxg3 {[%clk 0:00:54.4]} 35... f4 {[%clk 0:00:13.9]}
36. gxf4 {[%clk 0:00:53.7]} 36... g3 {[%clk 0:00:13.5]} 37. Rb7 {[%clk
0:00:50.1]} 37... Kf5 {[%clk 0:00:12.9]} 38. Rg7 {[%clk 0:00:44.5]} 38... Kxf4
{[%clk 0:00:12.5]} 39. c6 {[%clk 0:00:44.9]} 39... Kf3 {[%clk 0:00:11.2]} 40.
Kd6 {[%clk 0:00:42.7]} 40... Kf2 {[%clk 0:00:09.7]} 41. Kd7 {[%clk 0:00:43.1]}
41... Ra8 {[%clk 0:00:08.5]} 42. c7 {[%clk 0:00:43.2]} 42... g2 {[%clk
0:00:08.7]} 43. c8=Q {[%clk 0:00:41.6]} 43... Rxc8 {[%clk 0:00:08.9]} 44. Kxc8
{[%clk 0:00:42.2]} 44... g1=Q {[%clk 0:00:09.2]} 45. Rxg1 {[%clk 0:00:42.2]}
45... Kxg1 {[%clk 0:00:10.1]} 46. a4 {[%clk 0:00:42.6]} 46... Kf2 {[%clk
0:00:08.8]} 47. a5 {[%clk 0:00:42.9]} 47... Ke3 {[%clk 0:00:09.1]} 48. Kb7
{[%clk 0:00:43.1]} 48... Ke4 {[%clk 0:00:09.7]} 49. Kxa6 {[%clk 0:00:43.4]}
49... Kd5 {[%clk 0:00:10.2]} 50. Kb7 {[%clk 0:00:43.7]} 50... Kd6 {[%clk
0:00:09.9]} 51. a6 {[%clk 0:00:43.9]} 51... Kd7 {[%clk 0:00:10.8]} 52. a7 {[%clk
0:00:44.5]} 1-0

[Event "Late-Titled-Tuesday-Blitz-March-19-2024"]
[Site "Chess.com"]
[Date "2024.03.19"]
[Round "6"]
[White "Kampkatten"]
[Black "Oleksandr_Bortnyk"]
[Result "0-1"]
[WhiteElo "2844"]
[BlackElo "3073"]
[TimeControl "180+1"]
[EndTime "15:05:25 PDT"]
[Termination "Oleksandr_Bortnyk won by checkmate"]

1. Nf3 {[%clk 0:03:00.9]} 1... Nf6 {[%clk 0:02:51.9]} 2. g3 {[%clk 0:03:00.4]}
2... b6 {[%clk 0:02:51.9]} 3. Bg2 {[%clk 0:03:00.4]} 3... Bb7 {[%clk 0:02:52.8]}
4. O-O {[%clk 0:03:00.8]} 4... g6 {[%clk 0:02:50]} 5. c4 {[%clk 0:03:00.9]} 5...
Bg7 {[%clk 0:02:50.4]} 6. d4 {[%clk 0:03:00.1]} 6... O-O {[%clk 0:02:50.7]} 7.
Nc3 {[%clk 0:02:57.3]} 7... Ne4 {[%clk 0:02:50.9]} 8. Bd2 {[%clk 0:02:56.2]}
8... e6 {[%clk 0:02:46.5]} 9. Rc1 {[%clk 0:02:53.6]} 9... Nxd2 {[%clk
0:02:46.5]} 10. Qxd2 {[%clk 0:02:54.5]} 10... d6 {[%clk 0:02:46.7]} 11. e4
{[%clk 0:02:53.4]} 11... Nd7 {[%clk 0:02:45.2]} 12. Qe2 {[%clk 0:02:47.3]} 12...
a5 {[%clk 0:02:43.1]} 13. Rfd1 {[%clk 0:02:39]} 13... Qe7 {[%clk 0:02:39.1]} 14.
h4 {[%clk 0:02:37.8]} 14... a4 {[%clk 0:02:34]} 15. Qe3 {[%clk 0:02:29.8]} 15...
Ra5 {[%clk 0:02:29.8]} 16. Nb5 {[%clk 0:02:21.7]} 16... c6 {[%clk 0:02:26.7]}
17. Nc3 {[%clk 0:02:21]} 17... h6 {[%clk 0:02:09.9]} 18. b4 {[%clk 0:01:54.9]}
18... axb3 {[%clk 0:02:05]} 19. axb3 {[%clk 0:01:55.8]} 19... Rfa8 {[%clk
0:02:03.8]} 20. Rb1 {[%clk 0:01:52.2]} 20... Nf6 {[%clk 0:01:32.3]} 21. Ne1
{[%clk 0:01:46.3]} 21... Ng4 {[%clk 0:01:29.9]} 22. Qe2 {[%clk 0:01:44.8]} 22...
h5 {[%clk 0:01:28.1]} 23. Nc2 {[%clk 0:01:42]} 23... c5 {[%clk 0:01:25.1]} 24.
b4 {[%clk 0:01:37.6]} 24... cxb4 {[%clk 0:01:24.2]} 25. Rxb4 {[%clk 0:01:35.5]}
25... Rc8 {[%clk 0:01:11.7]} 26. Rxb6 {[%clk 0:01:17]} 26... Ba6 {[%clk
0:01:07.8]} 27. Rb4 {[%clk 0:01:10.2]} 27... Qc7 {[%clk 0:00:59]} 28. Bf1 {[%clk
0:01:09.4]} 28... Kh7 {[%clk 0:00:55.6]} 29. Rdb1 {[%clk 0:01:05.9]} 29... d5
{[%clk 0:00:49]} 30. exd5 {[%clk 0:00:46.7]} 30... exd5 {[%clk 0:00:48.3]} 31.
Qf3 {[%clk 0:00:41.5]} 31... dxc4 {[%clk 0:00:45.9]} 32. Ne4 {[%clk 0:00:36.6]}
32... Rf5 {[%clk 0:00:45.6]} 33. Ng5+ {[%clk 0:00:34.9]} 33... Kg8 {[%clk
0:00:44.7]} 34. Qa3 {[%clk 0:00:16.5]} 34... Rxf2 {[%clk 0:00:42]} 35. Rc1
{[%clk 0:00:11]} 35... Bb7 {[%clk 0:00:25.8]} 36. Rxc4 {[%clk 0:00:08.8]} 36...
Rxf1+ {[%clk 0:00:14.9]} 37. Rxf1 {[%clk 0:00:09.7]} 37... Qxc4 {[%clk
0:00:15.3]} 38. Rxf7 {[%clk 0:00:10.4]} 38... Bxd4+ {[%clk 0:00:14.1]} 39. Nxd4
{[%clk 0:00:04.8]} 39... Qxd4+ {[%clk 0:00:15]} 40. Kf1 {[%clk 0:00:05.3]} 40...
Qd1# {[%clk 0:00:14.1]} 0-1

[Event "Late-Titled-Tuesday-Blitz-March-19-2024"]
[Site "Chess.com"]
[Date "2024.03.19"]
[Round "6"]
[White "Quattroporte300"]
[Black "stepanosinovsky"]
[Result "0-1"]
[WhiteElo "2496"]
[BlackElo "2347"]
[TimeControl "180+1"]
[EndTime "15:05:25 PDT"]
[Termination "stepanosinovsky won by resignation"]

1. e4 {[%clk 0:03:00.9]} 1... Nf6 {[%clk 0:03:00.9]} 2. e5 {[%clk 0:03:00.9]}
2... Nd5 {[%clk 0:03:00.4]} 3. d4 {[%clk 0:03:01.4]} 3... d6 {[%clk 0:02:59.8]}
4. c4 {[%clk 0:03:01.8]} 4... Nb6 {[%clk 0:03:00]} 5. exd6 {[%clk 0:03:02.1]}
5... exd6 {[%clk 0:02:55.5]} 6. Nc3 {[%clk 0:03:02.7]} 6... g6 {[%clk
0:02:52.9]} 7. Be3 {[%clk 0:03:03.1]} 7... Bg7 {[%clk 0:02:53.2]} 8. Rc1 {[%clk
0:03:03.6]} 8... O-O {[%clk 0:02:53.1]} 9. b3 {[%clk 0:03:04.1]} 9... Re8 {[%clk
0:02:50.8]} 10. Nf3 {[%clk 0:03:03]} 10... Nc6 {[%clk 0:02:48.6]} 11. Be2 {[%clk
0:03:03.5]} 11... Bg4 {[%clk 0:02:48.9]} 12. O-O {[%clk 0:03:02.6]} 12... a5
{[%clk 0:02:45.1]} 13. h3 {[%clk 0:03:01.9]} 13... Bxf3 {[%clk 0:02:41.9]} 14.
Bxf3 {[%clk 0:03:01.6]} 14... a4 {[%clk 0:02:42.1]} 15. c5 {[%clk 0:02:57]}
15... Nd7 {[%clk 0:02:13.1]} 16. Nxa4 {[%clk 0:02:49.1]} 16... dxc5 {[%clk
0:01:56]} 17. dxc5 {[%clk 0:02:47.7]} 17... Nde5 {[%clk 0:01:43.9]} 18. Be2
{[%clk 0:02:46.9]} 18... Qh4 {[%clk 0:01:32.9]} 19. Qc2 {[%clk 0:02:25.9]} 19...
Nd4 {[%clk 0:01:23.6]} 20. Bxd4 {[%clk 0:02:24.5]} 20... Qxd4 {[%clk 0:01:24.5]}
21. Rfd1 {[%clk 0:02:23.7]} 21... Qh4 {[%clk 0:01:10.4]} 22. Rd5 {[%clk
0:02:05.3]} 22... Nc6 {[%clk 0:01:05]} 23. Qd2 {[%clk 0:01:42.3]} 23... Bh6
{[%clk 0:00:59]} 24. Rc4 {[%clk 0:01:31.7]} 24... Qxc4 {[%clk 0:00:47.1]} 25.
Bxc4 {[%clk 0:01:31.5]} 25... Bxd2 {[%clk 0:00:45.7]} 26. Rxd2 {[%clk
0:01:32.4]} 26... Rad8 {[%clk 0:00:30.9]} 27. Bd5 {[%clk 0:00:50.1]} 27... Nb4
{[%clk 0:00:27.5]} 28. Nc3 {[%clk 0:00:48.6]} 28... c6 {[%clk 0:00:26.1]} 29. a3
{[%clk 0:00:43.2]} 29... Nxd5 {[%clk 0:00:24.8]} 30. Na4 {[%clk 0:00:39.6]}
30... Nf4 {[%clk 0:00:20.5]} 31. Rc2 {[%clk 0:00:38.7]} 31... Re2 {[%clk
0:00:19.1]} 32. Rc4 {[%clk 0:00:38.4]} 32... Nd3 {[%clk 0:00:18.1]} 33. Nb6
{[%clk 0:00:37.4]} 33... Re1+ {[%clk 0:00:17.9]} 34. Kh2 {[%clk 0:00:37.4]}
34... Nxf2 {[%clk 0:00:18.3]} 35. Rf4 {[%clk 0:00:38]} 35... Nd3 {[%clk
0:00:17.9]} 36. Rf3 {[%clk 0:00:38.6]} 36... Nxc5 {[%clk 0:00:17.7]} 37. Nc4
{[%clk 0:00:38.3]} 37... Nxb3 {[%clk 0:00:17.3]} 38. Ne5 {[%clk 0:00:37.8]}
38... Rxe5 {[%clk 0:00:16.9]} 39. Rxb3 {[%clk 0:00:37.5]} 39... Rb5 {[%clk
0:00:17.3]} 40. Re3 {[%clk 0:00:37.2]} 40... Ra8 {[%clk 0:00:17.7]} 41. h4
{[%clk 0:00:37]} 41... Rba5 {[%clk 0:00:17.6]} 42. g4 {[%clk 0:00:36.9]} 42...
Rxa3 {[%clk 0:00:17.7]} 43. Re7 {[%clk 0:00:37.7]} 43... Ra2+ {[%clk 0:00:17.5]}
44. Kg3 {[%clk 0:00:38.3]} 44... R2a3+ {[%clk 0:00:16.6]} 45. Kf4 {[%clk
0:00:38.8]} 45... R3a4+ {[%clk 0:00:16.6]} 46. Kg5 {[%clk 0:00:39.5]} 46... Kg7
{[%clk 0:00:16.2]} 47. h5 {[%clk 0:00:39.1]} 47... h6+ {[%clk 0:00:16.2]} 48.
Kh4 {[%clk 0:00:39.6]} 48... g5+ {[%clk 0:00:16.5]} 49. Kg3 {[%clk 0:00:39.6]}
49... Ra3+ {[%clk 0:00:17.2]} 50. Kf2 {[%clk 0:00:40.1]} 50... Ra2+ {[%clk
0:00:17.4]} 0-1

[Event "Late-Titled-Tuesday-Blitz-March-19-2024"]
[Site "Chess.com"]
[Date "2024.03.19"]
[Round "6"]
[White "Fandorine"]
[Black "Jagerrmeisterr"]
[Result "1-0"]
[WhiteElo "2936"]
[BlackElo "2760"]
[TimeControl "180+1"]
[EndTime "15:05:26 PDT"]
[Termination "Fandorine won by resignation"]

1. d4 {[%clk 0:03:00.9]} 1... Nf6 {[%clk 0:02:59.8]} 2. c4 {[%clk 0:03:00.5]}
2... e6 {[%clk 0:02:58.7]} 3. g3 {[%clk 0:02:58]} 3... Bb4+ {[%clk 0:02:54.9]}
4. Bd2 {[%clk 0:02:56.2]} 4... Qe7 {[%clk 0:02:52.2]} 5. Bg2 {[%clk 0:02:54]}
5... O-O {[%clk 0:02:50.5]} 6. e3 {[%clk 0:02:48.3]} 6... Bxd2+ {[%clk
0:02:46.9]} 7. Qxd2 {[%clk 0:02:47]} 7... e5 {[%clk 0:02:46.2]} 8. dxe5 {[%clk
0:02:42.7]} 8... Qxe5 {[%clk 0:02:46.4]} 9. Nc3 {[%clk 0:02:42.2]} 9... d6
{[%clk 0:02:41.5]} 10. Nge2 {[%clk 0:02:42.5]} 10... Nc6 {[%clk 0:02:41.2]} 11.
O-O {[%clk 0:02:42]} 11... Bf5 {[%clk 0:02:38.8]} 12. f3 {[%clk 0:02:19.1]}
12... a6 {[%clk 0:02:23.7]} 13. Rac1 {[%clk 0:02:09.1]} 13... Rfe8 {[%clk
0:02:17.9]} 14. Nd5 {[%clk 0:01:38.6]} 14... Rac8 {[%clk 0:00:45.5]} 15. e4
{[%clk 0:01:37.8]} 15... Bg6 {[%clk 0:00:45.3]} 16. Kh1 {[%clk 0:01:32.6]} 16...
Nd8 {[%clk 0:00:33.8]} 17. Nec3 {[%clk 0:01:15.1]} 17... Nxd5 {[%clk 0:00:28.8]}
18. cxd5 {[%clk 0:01:13.1]} 18... f5 {[%clk 0:00:19.8]} 19. f4 {[%clk 0:00:56]}
19... Qf6 {[%clk 0:00:19.7]} 20. Rce1 {[%clk 0:00:41.1]} 20... Nf7 {[%clk
0:00:19.9]} 21. g4 {[%clk 0:00:34.2]} 21... fxg4 {[%clk 0:00:14.5]} 22. e5
{[%clk 0:00:31.1]} 22... Qh4 {[%clk 0:00:06.8]} 23. f5 {[%clk 0:00:24.6]} 23...
Bh5 {[%clk 0:00:05.3]} 24. e6 {[%clk 0:00:22.1]} 24... Ne5 {[%clk 0:00:05.4]}
25. Qd4 {[%clk 0:00:16.4]} 25... Qe7 {[%clk 0:00:02.9]} 26. Ne4 {[%clk
0:00:16.2]} 26... Rf8 {[%clk 0:00:03.3]} 27. Ng3 {[%clk 0:00:16.7]} 27... Qh4
{[%clk 0:00:01.7]} 28. Rxe5 {[%clk 0:00:16.5]} 28... dxe5 {[%clk 0:00:02.1]} 29.
Qxe5 {[%clk 0:00:17.4]} 29... Rce8 {[%clk 0:00:02.8]} 30. Qxc7 {[%clk
0:00:17.4]} 30... Rf6 {[%clk 0:00:03.5]} 31. d6 {[%clk 0:00:16.7]} 31... Rexe6
{[%clk 0:00:03.4]} 32. fxe6 {[%clk 0:00:14.5]} 32... Rxf1+ {[%clk 0:00:03.8]}
33. Bxf1 {[%clk 0:00:12.1]} 33... h6 {[%clk 0:00:03.4]} 34. d7 {[%clk
0:00:09.2]} 1-0

[Event "Late-Titled-Tuesday-Blitz-March-19-2024"]
[Site "Chess.com"]
[Date "2024.03.19"]
[Round "6"]
[White "ProfessorChess101"]
[Black "djano"]
[Result "0-1"]
[WhiteElo "2782"]
[BlackElo "2638"]
[TimeControl "180+1"]
[EndTime "15:05:26 PDT"]
[Termination "djano won by resignation"]

1. d4 {[%clk 0:03:00.9]} 1... Nf6 {[%clk 0:02:59.3]} 2. c4 {[%clk 0:03:00.6]}
2... g6 {[%clk 0:02:59.6]} 3. Nc3 {[%clk 0:03:00.9]} 3... Bg7 {[%clk 0:03:00]}
4. e4 {[%clk 0:03:01.6]} 4... d6 {[%clk 0:03:00.5]} 5. Nf3 {[%clk 0:03:02.1]}
5... O-O {[%clk 0:03:00.1]} 6. Be2 {[%clk 0:03:02.8]} 6... c5 {[%clk 0:03:00.3]}
7. O-O {[%clk 0:02:58.5]} 7... Re8 {[%clk 0:03:00.6]} 8. Be3 {[%clk 0:02:53.1]}
8... cxd4 {[%clk 0:02:59.5]} 9. Nxd4 {[%clk 0:02:54]} 9... Nc6 {[%clk
0:02:59.2]} 10. h3 {[%clk 0:02:53.3]} 10... Bd7 {[%clk 0:02:59.2]} 11. Qd2
{[%clk 0:02:46.8]} 11... Nxd4 {[%clk 0:02:59.1]} 12. Bxd4 {[%clk 0:02:47.7]}
12... Bc6 {[%clk 0:02:59.5]} 13. Bf3 {[%clk 0:02:38.7]} 13... Nd7 {[%clk
0:02:57.3]} 14. Rad1 {[%clk 0:02:25.9]} 14... Bxd4 {[%clk 0:02:52.7]} 15. Qxd4
{[%clk 0:02:26.8]} 15... Qb6 {[%clk 0:02:53]} 16. b3 {[%clk 0:02:22.5]} 16...
Qxd4 {[%clk 0:02:51.5]} 17. Rxd4 {[%clk 0:02:23.4]} 17... a5 {[%clk 0:02:48.9]}
18. Bg4 {[%clk 0:02:11]} 18... Nc5 {[%clk 0:02:47.3]} 19. f4 {[%clk 0:02:01.6]}
19... Kg7 {[%clk 0:02:25.1]} 20. Bf3 {[%clk 0:02:01.1]} 20... f6 {[%clk
0:02:12]} 21. g3 {[%clk 0:01:51.7]} 21... Rec8 {[%clk 0:02:07.6]} 22. Kf2 {[%clk
0:01:41.6]} 22... Ra6 {[%clk 0:01:48.2]} 23. Ke3 {[%clk 0:01:34.6]} 23... Rb6
{[%clk 0:01:45]} 24. Rb1 {[%clk 0:01:30.5]} 24... Kf7 {[%clk 0:01:36.3]} 25. Rd2
{[%clk 0:01:24.5]} 25... Rb4 {[%clk 0:01:29.9]} 26. Rdb2 {[%clk 0:01:21.2]}
26... Ra8 {[%clk 0:01:19.3]} 27. Ne2 {[%clk 0:00:56.6]} 27... e5 {[%clk
0:01:10.3]} 28. Nc3 {[%clk 0:00:49.8]} 28... Rb6 {[%clk 0:01:04.6]} 29. Rd1
{[%clk 0:00:44.6]} 29... Ke7 {[%clk 0:01:01.3]} 30. h4 {[%clk 0:00:41.2]} 30...
a4 {[%clk 0:00:54.8]} 31. b4 {[%clk 0:00:36.4]} 31... a3 {[%clk 0:00:55.3]} 32.
Rbb1 {[%clk 0:00:36.4]} 32... Na4 {[%clk 0:00:50.2]} 33. Ne2 {[%clk 0:00:21.4]}
33... Nb2 {[%clk 0:00:48.1]} 34. Rdc1 {[%clk 0:00:21.3]} 34... Rxb4 {[%clk
0:00:47.1]} 35. c5 {[%clk 0:00:20.4]} 35... Rd8 {[%clk 0:00:39.9]} 36. cxd6+
{[%clk 0:00:09.8]} 36... Rxd6 {[%clk 0:00:40.8]} 37. Ra1 {[%clk 0:00:08.5]}
37... Rd3+ {[%clk 0:00:39.7]} 38. Kf2 {[%clk 0:00:09]} 38... Rd2 {[%clk
0:00:40]} 39. Ke3 {[%clk 0:00:07.7]} 39... Rd3+ {[%clk 0:00:36]} 40. Kf2 {[%clk
0:00:08.2]} 40... f5 {[%clk 0:00:36.9]} 41. Rc3 {[%clk 0:00:04.8]} 41... fxe4
{[%clk 0:00:35]} 42. Bh1 {[%clk 0:00:02.3]} 42... Nd1+ {[%clk 0:00:31.2]} 43.
Ke1 {[%clk 0:00:02.4]} 43... Nxc3 {[%clk 0:00:30.6]} 44. Nxc3 {[%clk 0:00:02.3]}
44... Rxc3 {[%clk 0:00:31.5]} 0-1

[Event "Late-Titled-Tuesday-Blitz-March-19-2024"]
[Site "Chess.com"]
[Date "2024.03.19"]
[Round "6"]
[White "jcibarra"]
[Black "marcodobrikov"]
[Result "1-0"]
[WhiteElo "2936"]
[BlackElo "2712"]
[TimeControl "180+1"]
[EndTime "15:05:36 PDT"]
[Termination "jcibarra won by resignation"]

1. e4 {[%clk 0:03:00.9]} 1... c5 {[%clk 0:02:51.1]} 2. Nf3 {[%clk 0:03:00.8]}
2... d6 {[%clk 0:02:45.3]} 3. c3 {[%clk 0:03:00.4]} 3... Nf6 {[%clk 0:02:45.1]}
4. h3 {[%clk 0:03:00.8]} 4... e6 {[%clk 0:02:42.1]} 5. Bd3 {[%clk 0:03:00.2]}
5... Be7 {[%clk 0:02:42]} 6. Bc2 {[%clk 0:03:00.8]} 6... O-O {[%clk 0:02:38.8]}
7. O-O {[%clk 0:03:00]} 7... Nc6 {[%clk 0:02:38.7]} 8. Re1 {[%clk 0:02:56.5]}
8... e5 {[%clk 0:02:24.9]} 9. d4 {[%clk 0:02:54.8]} 9... Qc7 {[%clk 0:02:25.3]}
10. d5 {[%clk 0:02:51.3]} 10... Nb8 {[%clk 0:02:25.4]} 11. a4 {[%clk 0:02:50.1]}
11... b6 {[%clk 0:02:24.5]} 12. Na3 {[%clk 0:02:49.2]} 12... a6 {[%clk
0:02:22.6]} 13. Nc4 {[%clk 0:02:48.9]} 13... Bb7 {[%clk 0:02:17.6]} 14. Ne3
{[%clk 0:02:31.7]} 14... Bc8 {[%clk 0:02:17]} 15. Nh2 {[%clk 0:02:31]} 15... Bd7
{[%clk 0:02:08.6]} 16. Qf3 {[%clk 0:02:23.6]} 16... Qb7 {[%clk 0:01:54.7]} 17.
b4 {[%clk 0:02:11.2]} 17... b5 {[%clk 0:01:52.9]} 18. bxc5 {[%clk 0:02:01.1]}
18... dxc5 {[%clk 0:01:53.8]} 19. Nhg4 {[%clk 0:01:55.8]} 19... Nxg4 {[%clk
0:01:50.7]} 20. hxg4 {[%clk 0:01:54.9]} 20... g6 {[%clk 0:01:32.3]} 21. g3
{[%clk 0:01:54]} 21... Rd8 {[%clk 0:01:16.2]} 22. Kg2 {[%clk 0:01:53.1]} 22...
Be8 {[%clk 0:01:15.8]} 23. Rh1 {[%clk 0:01:50.9]} 23... Nd7 {[%clk 0:01:16]} 24.
Bd2 {[%clk 0:01:27]} 24... Nf8 {[%clk 0:01:16]} 25. Rh3 {[%clk 0:01:19.2]} 25...
Qb6 {[%clk 0:01:12]} 26. Rah1 {[%clk 0:01:18.3]} 26... Qf6 {[%clk 0:01:07.3]}
27. Qd1 {[%clk 0:01:16]} 27... c4 {[%clk 0:01:06.4]} 28. g5 {[%clk 0:01:14.8]}
28... Qg7 {[%clk 0:00:54.7]} 29. Ng4 {[%clk 0:01:14.5]} 29... Bd7 {[%clk
0:00:49.9]} 30. Nh6+ {[%clk 0:00:49]} 30... Kh8 {[%clk 0:00:49.7]} 31. Rh4
{[%clk 0:00:49.7]} 31... Rab8 {[%clk 0:00:45]} 32. Qf3 {[%clk 0:00:49.3]} 32...
Be8 {[%clk 0:00:44.2]} 33. Ng4 {[%clk 0:00:48.5]} 33... Rb6 {[%clk 0:00:33.6]}
34. a5 {[%clk 0:00:40.1]} 34... Rbd6 {[%clk 0:00:32.7]} 35. Be3 {[%clk
0:00:39.3]} 35... h5 {[%clk 0:00:29.1]} 36. Nxe5 {[%clk 0:00:31.4]} 36... Kg8
{[%clk 0:00:17.1]} 37. Bf4 {[%clk 0:00:31.2]} 37... Bxg5 {[%clk 0:00:14.7]} 38.
Bxg5 {[%clk 0:00:30.9]} 38... Qxe5 {[%clk 0:00:15]} 39. Bf4 {[%clk 0:00:20.2]}
39... Qg7 {[%clk 0:00:13.7]} 40. Bxd6 {[%clk 0:00:18.7]} 40... Rxd6 {[%clk
0:00:14.6]} 41. g4 {[%clk 0:00:19.1]} 41... hxg4 {[%clk 0:00:14.6]} 42. Rh8+
{[%clk 0:00:16.2]} 42... Qxh8 {[%clk 0:00:15.1]} 43. Rxh8+ {[%clk 0:00:16.2]}
43... Kxh8 {[%clk 0:00:16]} 44. Qf4 {[%clk 0:00:15.9]} 44... Rd7 {[%clk
0:00:14]} 45. Qe5+ {[%clk 0:00:16.1]} 45... Kg8 {[%clk 0:00:13.3]} 46. Qxe8
{[%clk 0:00:15.9]} 46... Rd6 {[%clk 0:00:13.9]} 1-0